[Event "*** Titled Tuesday Blitz"]
[Site "Chess.com"]
[Date "2019.01.01"]
[Round "5"]
[White "Zhuu96"]
[Black "bugsbunny444"]
[Result "1-0"]
[WhiteElo "2882"]
[BlackElo "2534"]
[TimeControl "180+2"]
[EndTime "14:07:52 PST"]
[Termination "Zhuu96 won by resignation"]

1. c4 {[%clk 0:02:56.9]} 1... b6 {[%clk 0:03:00.7]} 2. Nc3 {[%clk 0:02:57.7]}
2... Bb7 {[%clk 0:03:02.1]} 3. d4 {[%clk 0:02:58.5]} 3... e6 {[%clk 0:03:03.4]}
4. a3 {[%clk 0:02:59.8]} 4... f5 {[%clk 0:03:04.2]} 5. Bf4 {[%clk 0:02:57.9]}
5... Nf6 {[%clk 0:03:05.1]} 6. e3 {[%clk 0:02:59.1]} 6... g6 {[%clk 0:02:48.9]}
7. d5 {[%clk 0:02:59.1]} 7... Bg7 {[%clk 0:02:39]} 8. Nf3 {[%clk 0:02:56]} 8...
Na6 {[%clk 0:02:31.6]} 9. Nd4 {[%clk 0:02:43.3]} 9... exd5 {[%clk 0:02:24]} 10.
cxd5 {[%clk 0:02:40]} 10... Nc5 {[%clk 0:02:22.8]} 11. d6 {[%clk 0:02:39]} 11...
cxd6 {[%clk 0:02:02.8]} 12. Ncb5 {[%clk 0:02:40.1]} 12... O-O {[%clk 0:01:58.3]}
13. Bxd6 {[%clk 0:02:25]} 13... Rf7 {[%clk 0:01:35.1]} 14. Bc4 {[%clk
0:02:20.9]} 14... Bxg2 {[%clk 0:01:36]} 15. Bxf7+ {[%clk 0:02:21.2]} 15... Kxf7
{[%clk 0:01:36.9]} 16. Rg1 {[%clk 0:02:21.9]} 16... Be4 {[%clk 0:01:20.2]} 17.
f3 {[%clk 0:02:06.4]} 17... Bd5 {[%clk 0:00:48.5]} 18. Nc7 {[%clk 0:02:05.7]}
18... Rc8 {[%clk 0:00:34.4]} 19. Nxd5 {[%clk 0:02:05]} 19... Nxd5 {[%clk
0:00:36.3]} 20. Nxf5 {[%clk 0:02:06.6]} 20... Nxe3 {[%clk 0:00:10.6]} 21. Nxe3
{[%clk 0:02:06.6]} 21... Bxb2 {[%clk 0:00:06.8]} 22. Qd5+ {[%clk 0:02:03.5]}
22... Ne6 {[%clk 0:00:07.9]} 23. Rd1 {[%clk 0:02:02.8]} 23... Qh4+ {[%clk
0:00:07]} 24. Kf1 {[%clk 0:02:03.8]} 24... Qh3+ {[%clk 0:00:07.6]} 25. Rg2
{[%clk 0:02:04.3]} 25... Bf6 {[%clk 0:00:04.2]} 26. Bg3 {[%clk 0:02:04.3]} 26...
Rc7 {[%clk 0:00:04.1]} 27. Bxc7 {[%clk 0:02:04.2]} 1-0

[Event "*** Titled Tuesday Blitz"]
[Site "Chess.com"]
[Date "2019.01.01"]
[Round "5"]
[White "OparinGrigoriy"]
[Black "Peng_Li-Min"]
[Result "0-1"]
[WhiteElo "2909"]
[BlackElo "2675"]
[TimeControl "180+2"]
[EndTime "14:08:08 PST"]
[Termination "Peng_Li-Min won by resignation"]

1. Nf3 {[%clk 0:03:01.9]} 1... Nf6 {[%clk 0:02:59.4]} 2. g3 {[%clk 0:03:03.8]}
2... g6 {[%clk 0:03:00.8]} 3. Bg2 {[%clk 0:03:05.7]} 3... Bg7 {[%clk 0:03:02.2]}
4. c4 {[%clk 0:03:07.6]} 4... O-O {[%clk 0:03:03.4]} 5. Nc3 {[%clk 0:03:09.5]}
5... d5 {[%clk 0:03:04.7]} 6. cxd5 {[%clk 0:03:11.4]} 6... Nxd5 {[%clk
0:03:06.6]} 7. h4 {[%clk 0:03:13.3]} 7... Nc6 {[%clk 0:02:37.3]} 8. h5 {[%clk
0:03:13.4]} 8... Nxc3 {[%clk 0:02:39]} 9. bxc3 {[%clk 0:03:15.3]} 9... e5 {[%clk
0:02:40]} 10. hxg6 {[%clk 0:03:16.2]} 10... hxg6 {[%clk 0:02:41.9]} 11. Qc2
{[%clk 0:03:16.5]} 11... Re8 {[%clk 0:02:38.4]} 12. d3 {[%clk 0:03:17.2]} 12...
e4 {[%clk 0:02:23.3]} 13. dxe4 {[%clk 0:03:17.9]} 13... Qf6 {[%clk 0:02:17.1]}
14. Bd2 {[%clk 0:03:11.8]} 14... Bg4 {[%clk 0:02:15.7]} 15. Rh4 {[%clk
0:03:10.7]} 15... Bxf3 {[%clk 0:01:54]} 16. Bxf3 {[%clk 0:03:12.6]} 16... Ne5
{[%clk 0:01:54.7]} 17. Bg2 {[%clk 0:03:12.2]} 17... Nc4 {[%clk 0:01:56.4]} 18.
Kf1 {[%clk 0:03:01]} 18... Rad8 {[%clk 0:01:49.9]} 19. Bf4 {[%clk 0:02:40.6]}
19... Qxc3 {[%clk 0:01:35.2]} 20. Qxc3 {[%clk 0:02:42.5]} 20... Bxc3 {[%clk
0:01:35.7]} 21. Rc1 {[%clk 0:02:41.1]} 21... Bf6 {[%clk 0:01:35.1]} 22. Rh1
{[%clk 0:02:35.9]} 22... b5 {[%clk 0:01:35.2]} 23. Bf3 {[%clk 0:02:35]} 23... c5
{[%clk 0:01:24.4]} 24. Kg2 {[%clk 0:02:35.7]} 24... g5 {[%clk 0:01:00.5]} 25. e5
{[%clk 0:02:36.6]} 25... Nxe5 {[%clk 0:00:53.2]} 26. Bxe5 {[%clk 0:02:37.8]}
26... Rxe5 {[%clk 0:00:53.4]} 27. Rhd1 {[%clk 0:02:38]} 27... Rxd1 {[%clk
0:00:51.5]} 28. Rxd1 {[%clk 0:02:39.9]} 28... c4 {[%clk 0:00:52.9]} 29. Rd7
{[%clk 0:02:40.3]} 29... Rc5 {[%clk 0:00:51.5]} 30. Bd5 {[%clk 0:02:33.4]} 30...
c3 {[%clk 0:00:50.1]} 31. Bxf7+ {[%clk 0:02:34.5]} 31... Kf8 {[%clk 0:00:50]}
32. Bb3 {[%clk 0:02:29.1]} 32... c2 {[%clk 0:00:51.1]} 33. Bxc2 {[%clk
0:02:29.8]} 33... Rxc2 {[%clk 0:00:53]} 34. Rxa7 {[%clk 0:02:31.1]} 34... Rxe2
{[%clk 0:00:53.8]} 35. Ra5 {[%clk 0:02:31.9]} 35... Rb2 {[%clk 0:00:53.2]} 36.
a4 {[%clk 0:02:31.1]} 36... b4 {[%clk 0:00:51.3]} 37. Rb5 {[%clk 0:02:31.5]}
37... Bc3 {[%clk 0:00:40.1]} 38. a5 {[%clk 0:02:32.4]} 38... g4 {[%clk
0:00:39.3]} 39. Kf1 {[%clk 0:02:32.4]} 39... Ra2 {[%clk 0:00:39.8]} 40. Rg5
{[%clk 0:02:23.3]} 40... b3 {[%clk 0:00:40.3]} 0-1

[Event "*** Titled Tuesday Blitz"]
[Site "Chess.com"]
[Date "2019.01.01"]
[Round "5"]
[White "riconaipe"]
[Black "essequamvideris"]
[Result "0-1"]
[WhiteElo "2433"]
[BlackElo "2391"]
[TimeControl "180+2"]
[EndTime "14:08:08 PST"]
[Termination "essequamvideris won by checkmate"]

1. d4 {[%clk 0:03:01.9]} 1... Nf6 {[%clk 0:02:59.1]} 2. c4 {[%clk 0:03:01.9]}
2... c5 {[%clk 0:02:59.9]} 3. d5 {[%clk 0:03:02.1]} 3... b5 {[%clk 0:03:00.8]}
4. Nf3 {[%clk 0:03:02.4]} 4... g6 {[%clk 0:03:01.6]} 5. cxb5 {[%clk 0:03:01.9]}
5... Bg7 {[%clk 0:03:02.7]} 6. Nc3 {[%clk 0:03:02]} 6... O-O {[%clk 0:03:03.1]}
7. e4 {[%clk 0:03:02.7]} 7... d6 {[%clk 0:03:03.7]} 8. a4 {[%clk 0:03:00.9]}
8... a6 {[%clk 0:03:03.8]} 9. b6 {[%clk 0:03:01.2]} 9... Qxb6 {[%clk 0:02:58.9]}
10. Nd2 {[%clk 0:03:00.9]} 10... Nbd7 {[%clk 0:02:57.3]} 11. Nc4 {[%clk
0:02:54.9]} 11... Qb4 {[%clk 0:02:55.7]} 12. Bd2 {[%clk 0:02:51.9]} 12... Qb7
{[%clk 0:02:56.6]} 13. Na5 {[%clk 0:02:50.3]} 13... Qc7 {[%clk 0:02:56.3]} 14.
Nc6 {[%clk 0:02:50.9]} 14... Nb8 {[%clk 0:02:49.4]} 15. Nxb8 {[%clk 0:02:33.6]}
15... Rxb8 {[%clk 0:02:51.3]} 16. Qc2 {[%clk 0:02:33.6]} 16... e6 {[%clk
0:02:49.6]} 17. Be2 {[%clk 0:02:29.2]} 17... exd5 {[%clk 0:02:44.8]} 18. exd5
{[%clk 0:02:30]} 18... Bf5 {[%clk 0:02:44.7]} 19. Qc1 {[%clk 0:02:30.7]} 19...
Qb7 {[%clk 0:02:42.5]} 20. O-O {[%clk 0:02:12.1]} 20... Qxb2 {[%clk 0:02:41.9]}
21. Bxa6 {[%clk 0:02:07.8]} 21... Ne4 {[%clk 0:02:39.7]} 22. Nxe4 {[%clk
0:01:59.5]} 22... Bxe4 {[%clk 0:02:39]} 23. Qxb2 {[%clk 0:01:50.4]} 23... Rxb2
{[%clk 0:02:40.9]} 24. Bf4 {[%clk 0:01:51.2]} 24... Rd8 {[%clk 0:02:38.6]} 25.
Rad1 {[%clk 0:01:46.1]} 25... Rb4 {[%clk 0:02:33.4]} 26. Bb5 {[%clk 0:01:35]}
26... Bc2 {[%clk 0:02:31.4]} 27. Rde1 {[%clk 0:01:24.9]} 27... Rxf4 {[%clk
0:02:29.9]} 28. a5 {[%clk 0:01:20.2]} 28... Rb4 {[%clk 0:02:23.9]} 29. Bc6
{[%clk 0:01:20]} 29... Bd3 {[%clk 0:02:22.2]} 30. Re7 {[%clk 0:01:14.6]} 30...
Bxf1 {[%clk 0:02:19.8]} 31. Kxf1 {[%clk 0:01:15.5]} 31... Rb1+ {[%clk
0:02:19.2]} 32. Ke2 {[%clk 0:01:15.9]} 32... Ra1 {[%clk 0:02:18.9]} 33. Ra7
{[%clk 0:01:16.5]} 33... Rb8 {[%clk 0:02:16.2]} 34. g3 {[%clk 0:01:02.9]} 34...
Rb2+ {[%clk 0:02:14]} 35. Kf3 {[%clk 0:01:01.4]} 35... Bd4 {[%clk 0:02:14.7]}
36. Be8 {[%clk 0:00:51.1]} 36... Rxf2+ {[%clk 0:02:13.9]} 37. Kg4 {[%clk
0:00:52.6]} 37... h5+ {[%clk 0:02:02.1]} 38. Kg5 {[%clk 0:00:52.7]} 38... Kg7
{[%clk 0:02:00.7]} 39. h3 {[%clk 0:00:48.9]} 39... Bf6# {[%clk 0:02:00.8]} 0-1

[Event "*** Titled Tuesday Blitz"]
[Site "Chess.com"]
[Date "2019.01.01"]
[Round "5"]
[White "walkingcreep"]
[Black "jcibarra"]
[Result "0-1"]
[WhiteElo "2592"]
[BlackElo "2740"]
[TimeControl "180+2"]
[EndTime "14:08:17 PST"]
[Termination "jcibarra won by resignation"]

1. d4 {[%clk 0:03:01.9]} 1... Nf6 {[%clk 0:03:00.8]} 2. c4 {[%clk 0:03:02.9]}
2... d6 {[%clk 0:03:02.2]} 3. Nc3 {[%clk 0:03:02.6]} 3... e5 {[%clk 0:03:02.8]}
4. d5 {[%clk 0:02:57.7]} 4... Nbd7 {[%clk 0:03:02.9]} 5. g3 {[%clk 0:02:57.5]}
5... a5 {[%clk 0:03:02.8]} 6. Bg2 {[%clk 0:02:57.9]} 6... Nc5 {[%clk 0:03:02.6]}
7. e4 {[%clk 0:02:58.4]} 7... h5 {[%clk 0:03:01.9]} 8. h3 {[%clk 0:02:57.3]}
8... Be7 {[%clk 0:03:01.8]} 9. Nge2 {[%clk 0:02:57.4]} 9... h4 {[%clk
0:03:02.8]} 10. g4 {[%clk 0:02:57.1]} 10... Nh7 {[%clk 0:03:04]} 11. f4 {[%clk
0:02:46.5]} 11... exf4 {[%clk 0:03:04.4]} 12. Bxf4 {[%clk 0:02:47.3]} 12... Bf6
{[%clk 0:02:56.1]} 13. O-O {[%clk 0:02:42.9]} 13... Nf8 {[%clk 0:02:57.1]} 14.
Qd2 {[%clk 0:02:33.7]} 14... Ng6 {[%clk 0:02:57.5]} 15. Be3 {[%clk 0:02:24.6]}
15... Bd7 {[%clk 0:02:56.2]} 16. Nd4 {[%clk 0:02:23]} 16... a4 {[%clk
0:02:49.5]} 17. Ncb5 {[%clk 0:02:15.7]} 17... O-O {[%clk 0:02:41.9]} 18. g5
{[%clk 0:02:08.6]} 18... Be5 {[%clk 0:02:41]} 19. Nf5 {[%clk 0:02:05.5]} 19...
Bxb5 {[%clk 0:02:35.4]} 20. cxb5 {[%clk 0:02:05.5]} 20... a3 {[%clk 0:02:37]}
21. b4 {[%clk 0:01:46.4]} 21... Na4 {[%clk 0:02:30.4]} 22. Rac1 {[%clk
0:01:42.3]} 22... Qd7 {[%clk 0:02:31.1]} 23. Qd3 {[%clk 0:01:33.9]} 23... Nb2
{[%clk 0:02:30.3]} 24. Qe2 {[%clk 0:01:34.4]} 24... Ra4 {[%clk 0:02:31.2]} 25.
Qh5 {[%clk 0:01:21.1]} 25... Rxb4 {[%clk 0:02:27.7]} 26. Nxh4 {[%clk 0:01:21.8]}
26... Nxh4 {[%clk 0:02:23.4]} 27. Qxh4 {[%clk 0:01:23]} 27... g6 {[%clk
0:02:22.4]} 28. Rf6 {[%clk 0:01:18.7]} 28... Nc4 {[%clk 0:02:17.8]} 29. Bf4
{[%clk 0:01:09.5]} 29... Qxb5 {[%clk 0:02:15.4]} 30. Rf1 {[%clk 0:01:05.8]}
30... Rb1 {[%clk 0:02:14.6]} 31. Qh6 {[%clk 0:00:59.7]} 31... Qc5+ {[%clk
0:02:07.6]} 32. Kh1 {[%clk 0:00:56]} 32... Rxf1+ {[%clk 0:02:08.7]} 33. Bxf1
{[%clk 0:00:56.4]} 33... Qd4 {[%clk 0:01:55.7]} 34. Bxc4 {[%clk 0:00:33.5]}
34... Qxe4+ {[%clk 0:01:54.6]} 35. Kg1 {[%clk 0:00:34.9]} 35... Bxf4 {[%clk
0:01:50.3]} 0-1

[Event "*** Titled Tuesday Blitz"]
[Site "Chess.com"]
[Date "2019.01.01"]
[Round "5"]
[White "snowlord"]
[Black "Daniela_Movileanu"]
[Result "1-0"]
[WhiteElo "2694"]
[BlackElo "2497"]
[TimeControl "180+2"]
[EndTime "14:08:24 PST"]
[Termination "snowlord won by resignation"]

1. e4 {[%clk 0:02:58.2]} 1... c5 {[%clk 0:03:00.1]} 2. Nf3 {[%clk 0:02:58.7]}
2... g6 {[%clk 0:02:58.2]} 3. c3 {[%clk 0:02:58.9]} 3... d5 {[%clk 0:02:57]} 4.
e5 {[%clk 0:02:56.7]} 4... Bg7 {[%clk 0:02:55.9]} 5. d4 {[%clk 0:02:55.4]} 5...
Nc6 {[%clk 0:02:52.6]} 6. Bb5 {[%clk 0:02:50.9]} 6... Bg4 {[%clk 0:02:53.1]} 7.
Nbd2 {[%clk 0:02:49.8]} 7... e6 {[%clk 0:02:52.9]} 8. h3 {[%clk 0:02:41.1]} 8...
Bf5 {[%clk 0:02:47.7]} 9. O-O {[%clk 0:02:30.5]} 9... Ne7 {[%clk 0:02:46.4]} 10.
Nb3 {[%clk 0:02:24.3]} 10... Qb6 {[%clk 0:02:42.3]} 11. Bxc6+ {[%clk 0:02:24.2]}
11... bxc6 {[%clk 0:02:40.9]} 12. Nxc5 {[%clk 0:02:24.9]} 12... h5 {[%clk
0:02:22.4]} 13. Bg5 {[%clk 0:02:24.4]} 13... Bh6 {[%clk 0:02:15.2]} 14. Bxh6
{[%clk 0:02:19.7]} 14... Rxh6 {[%clk 0:02:17.1]} 15. Qd2 {[%clk 0:02:21.3]}
15... Rh8 {[%clk 0:02:14.5]} 16. b4 {[%clk 0:02:15]} 16... g5 {[%clk 0:02:03.5]}
17. Nxg5 {[%clk 0:02:07.3]} 17... Rg8 {[%clk 0:02:04]} 18. Kh2 {[%clk
0:02:05.7]} 18... Ng6 {[%clk 0:02:02.5]} 19. g3 {[%clk 0:01:50.4]} 19... Qd8
{[%clk 0:02:02.5]} 20. Nh7 {[%clk 0:01:47.7]} 20... Rh8 {[%clk 0:01:55.2]} 21.
Nf6+ {[%clk 0:01:47.9]} 21... Kf8 {[%clk 0:01:52.7]} 22. f3 {[%clk 0:01:30.5]}
22... Rc8 {[%clk 0:01:45.1]} 23. Rf2 {[%clk 0:01:06]} 23... Rc7 {[%clk
0:01:36.9]} 24. Raf1 {[%clk 0:01:05.7]} 24... Re7 {[%clk 0:01:36.8]} 25. Qe3
{[%clk 0:01:00.5]} 25... a5 {[%clk 0:01:27.5]} 26. g4 {[%clk 0:00:57.8]} 26...
hxg4 {[%clk 0:01:20.8]} 27. fxg4 {[%clk 0:00:59.7]} 27... Be4 {[%clk 0:01:16.7]}
28. Nfxe4 {[%clk 0:00:59.5]} 28... dxe4 {[%clk 0:01:18.6]} 29. Qxe4 {[%clk
0:00:54]} 29... axb4 {[%clk 0:01:18.7]} 30. Qxg6 {[%clk 0:00:50.2]} 1-0

[Event "*** Titled Tuesday Blitz"]
[Site "Chess.com"]
[Date "2019.01.01"]
[Round "5"]
[White "Shant_Sargsyan"]
[Black "Alexander_Donchenko"]
[Result "0-1"]
[WhiteElo "2946"]
[BlackElo "2669"]
[TimeControl "180+2"]
[EndTime "14:08:30 PST"]
[Termination "Alexander_Donchenko won by resignation"]

1. d4 {[%clk 0:03:01.7]} 1... d5 {[%clk 0:03:00.1]} 2. c4 {[%clk 0:03:03]} 2...
c6 {[%clk 0:03:00.8]} 3. Nf3 {[%clk 0:03:04.5]} 3... Nf6 {[%clk 0:03:01.5]} 4.
Nc3 {[%clk 0:03:05.9]} 4... dxc4 {[%clk 0:03:01.2]} 5. a4 {[%clk 0:03:06.5]}
5... e6 {[%clk 0:03:00.1]} 6. e4 {[%clk 0:03:05.5]} 6... Bb4 {[%clk 0:03:00.4]}
7. Bg5 {[%clk 0:03:06.6]} 7... h6 {[%clk 0:02:57]} 8. Bxf6 {[%clk 0:03:07.2]}
8... Qxf6 {[%clk 0:02:58.9]} 9. Bxc4 {[%clk 0:03:08.5]} 9... Nd7 {[%clk
0:02:58.4]} 10. O-O {[%clk 0:03:09.4]} 10... O-O {[%clk 0:02:58.9]} 11. e5
{[%clk 0:03:10.3]} 11... Qe7 {[%clk 0:02:52.7]} 12. Ne4 {[%clk 0:03:11.2]} 12...
Rd8 {[%clk 0:02:52.6]} 13. Qe2 {[%clk 0:03:12]} 13... c5 {[%clk 0:02:47.6]} 14.
Rfd1 {[%clk 0:03:02]} 14... cxd4 {[%clk 0:02:48.4]} 15. Rxd4 {[%clk 0:03:03.1]}
15... Nb6 {[%clk 0:02:45.7]} 16. Rxd8+ {[%clk 0:03:03.7]} 16... Qxd8 {[%clk
0:02:47.2]} 17. Rd1 {[%clk 0:03:05.1]} 17... Bd7 {[%clk 0:02:45]} 18. Bb5 {[%clk
0:03:00.6]} 18... Nd5 {[%clk 0:02:43.3]} 19. Nc3 {[%clk 0:02:37.5]} 19... Bxc3
{[%clk 0:02:40.4]} 20. Bxd7 {[%clk 0:02:31.2]} 20... Qxd7 {[%clk 0:02:26.1]} 21.
bxc3 {[%clk 0:02:32.1]} 21... Qxa4 {[%clk 0:02:26.9]} 22. Rc1 {[%clk 0:02:19.3]}
22... Rc8 {[%clk 0:02:27.1]} 23. c4 {[%clk 0:02:15.4]} 23... b5 {[%clk
0:02:27.7]} 24. c5 {[%clk 0:02:11.6]} 24... Qa3 {[%clk 0:02:27.1]} 25. Qc2
{[%clk 0:02:08.9]} 25... b4 {[%clk 0:02:19]} 26. c6 {[%clk 0:02:00.3]} 26... b3
{[%clk 0:02:14.9]} 27. Qb1 {[%clk 0:02:00.7]} 27... a5 {[%clk 0:01:46.1]} 28.
Nd4 {[%clk 0:02:01.3]} 28... b2 {[%clk 0:01:37.9]} 29. Rc2 {[%clk 0:01:56.8]}
29... Qd3 {[%clk 0:01:38.5]} 30. Nf3 {[%clk 0:01:10.5]} 30... Nc3 {[%clk
0:01:25.1]} 31. Ne1 {[%clk 0:00:48.9]} 31... Qe4 {[%clk 0:01:22.3]} 0-1

[Event "*** Titled Tuesday Blitz"]
[Site "Chess.com"]
[Date "2019.01.01"]
[Round "5"]
[White "Ali_rastbod"]
[Black "platy3"]
[Result "1-0"]
[WhiteElo "2591"]
[BlackElo "2793"]
[TimeControl "180+2"]
[EndTime "14:08:34 PST"]
[Termination "Ali_rastbod won by resignation"]

1. c4 {[%clk 0:03:01.9]} 1... e5 {[%clk 0:02:58.6]} 2. Nc3 {[%clk 0:03:03.2]}
2... Nf6 {[%clk 0:02:58.8]} 3. Nf3 {[%clk 0:03:04.5]} 3... Nc6 {[%clk
0:02:59.4]} 4. e4 {[%clk 0:03:06.1]} 4... Bb4 {[%clk 0:02:59.1]} 5. d3 {[%clk
0:03:07.1]} 5... Bxc3+ {[%clk 0:02:59.5]} 6. bxc3 {[%clk 0:03:08.1]} 6... d6
{[%clk 0:03:01.4]} 7. Be2 {[%clk 0:03:07.7]} 7... O-O {[%clk 0:03:01.9]} 8. O-O
{[%clk 0:03:08.8]} 8... h6 {[%clk 0:03:02.9]} 9. Ne1 {[%clk 0:03:09.8]} 9... Be6
{[%clk 0:03:02.2]} 10. f4 {[%clk 0:03:10]} 10... exf4 {[%clk 0:03:03.4]} 11.
Bxf4 {[%clk 0:03:11.6]} 11... Nd7 {[%clk 0:03:03.9]} 12. d4 {[%clk 0:02:52.6]}
12... Na5 {[%clk 0:02:58.9]} 13. d5 {[%clk 0:02:48]} 13... Nb6 {[%clk
0:02:59.6]} 14. dxe6 {[%clk 0:02:46.7]} 14... fxe6 {[%clk 0:03:01.5]} 15. Bg3
{[%clk 0:02:30.5]} 15... Naxc4 {[%clk 0:02:59.2]} 16. Bxc4 {[%clk 0:02:30.5]}
16... Nxc4 {[%clk 0:02:59.8]} 17. Rxf8+ {[%clk 0:02:32.4]} 17... Qxf8 {[%clk
0:03:00.6]} 18. Qd3 {[%clk 0:02:31.3]} 18... b5 {[%clk 0:03:00.7]} 19. Nc2
{[%clk 0:02:29.3]} 19... Qf6 {[%clk 0:02:57.2]} 20. Rf1 {[%clk 0:02:26.4]} 20...
Qg6 {[%clk 0:02:56.1]} 21. Nd4 {[%clk 0:02:19.7]} 21... a6 {[%clk 0:02:54.2]}
22. Qe2 {[%clk 0:02:12.8]} 22... Rf8 {[%clk 0:02:51.3]} 23. Rxf8+ {[%clk
0:02:10.8]} 23... Kxf8 {[%clk 0:02:53.2]} 24. a4 {[%clk 0:02:04.6]} 24... Na3
{[%clk 0:02:40.3]} 25. axb5 {[%clk 0:02:03.6]} 25... axb5 {[%clk 0:02:41]} 26.
Nxb5 {[%clk 0:01:47.7]} 26... Nxb5 {[%clk 0:02:40.5]} 27. Qxb5 {[%clk
0:01:49.6]} 27... Qxe4 {[%clk 0:02:41.1]} 28. Qb8+ {[%clk 0:01:22.1]} 28... Kf7
{[%clk 0:02:42.1]} 29. Qxc7+ {[%clk 0:01:23.4]} 29... Kg8 {[%clk 0:02:43.8]} 30.
h3 {[%clk 0:01:08.6]} 30... d5 {[%clk 0:02:42.5]} 31. Qe5 {[%clk 0:01:07.6]}
31... Qg6 {[%clk 0:02:38.8]} 32. Kh2 {[%clk 0:01:08.6]} 32... Kf7 {[%clk
0:02:38.9]} 33. Qc7+ {[%clk 0:01:08.5]} 33... Kg8 {[%clk 0:02:39.7]} 34. Be5
{[%clk 0:01:09.3]} 34... Kh7 {[%clk 0:02:39.8]} 35. Qe7 {[%clk 0:01:05.7]} 35...
Kg8 {[%clk 0:02:39.8]} 36. Qd8+ {[%clk 0:01:03.9]} 36... Kh7 {[%clk 0:02:40.9]}
37. Qf8 {[%clk 0:01:01.2]} 37... Qg5 {[%clk 0:02:37.1]} 38. Qf4 {[%clk
0:01:01.4]} 38... Qg6 {[%clk 0:02:37.1]} 39. h4 {[%clk 0:01:02.7]} 39... Qh5
{[%clk 0:02:35]} 40. Bd4 {[%clk 0:01:00.4]} 40... Kg8 {[%clk 0:02:24]} 41. Kh3
{[%clk 0:00:56.8]} 41... Qd1 {[%clk 0:02:19.4]} 42. Qe3 {[%clk 0:00:39.7]} 42...
Kf7 {[%clk 0:02:12]} 43. Qf3+ {[%clk 0:00:39.1]} 1-0

[Event "*** Titled Tuesday Blitz"]
[Site "Chess.com"]
[Date "2019.01.01"]
[Round "5"]
[White "Arman_Hakemi"]
[Black "gmcorrales"]
[Result "0-1"]
[WhiteElo "2467"]
[BlackElo "2753"]
[TimeControl "180+2"]
[EndTime "14:08:42 PST"]
[Termination "gmcorrales won on time"]

1. e4 {[%clk 0:03:01.9]} 1... Nf6 {[%clk 0:03:01.3]} 2. e5 {[%clk 0:03:00.3]}
2... Nd5 {[%clk 0:03:02.8]} 3. d4 {[%clk 0:02:59.1]} 3... d6 {[%clk 0:03:03.4]}
4. Nf3 {[%clk 0:03:00.3]} 4... Bg4 {[%clk 0:03:03.5]} 5. h3 {[%clk 0:02:47.7]}
5... Bxf3 {[%clk 0:03:04]} 6. Qxf3 {[%clk 0:02:48.3]} 6... dxe5 {[%clk
0:03:05.2]} 7. dxe5 {[%clk 0:02:47.8]} 7... e6 {[%clk 0:03:04.9]} 8. Bd3 {[%clk
0:01:53.2]} 8... Nc6 {[%clk 0:02:57.7]} 9. Qg3 {[%clk 0:01:50.1]} 9... Ndb4
{[%clk 0:02:54.2]} 10. O-O {[%clk 0:01:15.4]} 10... Nxd3 {[%clk 0:02:54.5]} 11.
cxd3 {[%clk 0:01:15.9]} 11... Qd5 {[%clk 0:02:49.9]} 12. Nc3 {[%clk 0:01:14.7]}
12... Qd7 {[%clk 0:02:29.7]} 13. Be3 {[%clk 0:01:11.4]} 13... g6 {[%clk
0:02:27]} 14. d4 {[%clk 0:00:45.6]} 14... Be7 {[%clk 0:02:24.8]} 15. Rad1 {[%clk
0:00:45.5]} 15... Nb4 {[%clk 0:02:24.4]} 16. Qf3 {[%clk 0:00:26.4]} 16... c6
{[%clk 0:02:18.7]} 17. Bh6 {[%clk 0:00:24.2]} 17... Nd5 {[%clk 0:02:18.5]} 18.
Ne4 {[%clk 0:00:24.3]} 18... Rg8 {[%clk 0:02:18]} 19. a3 {[%clk 0:00:24.3]}
19... g5 {[%clk 0:01:37.8]} 20. g3 {[%clk 0:00:05.8]} 20... Rg6 {[%clk
0:01:34.2]} 21. Qh5 {[%clk 0:00:06.8]} 21... O-O-O {[%clk 0:01:29.2]} 22. Bxg5
{[%clk 0:00:06.9]} 22... Bxg5 {[%clk 0:01:28]} 23. Nxg5 {[%clk 0:00:07.4]} 23...
Rdg8 {[%clk 0:01:29.4]} 24. Ne4 {[%clk 0:00:06.1]} 24... Nf4 {[%clk 0:01:27.2]}
25. Qxh7 {[%clk 0:00:04.3]} 25... Qd5 {[%clk 0:01:23.5]} 26. Nd6+ {[%clk
0:00:03.5]} 26... Kb8 {[%clk 0:01:24.5]} 0-1

[Event "*** Titled Tuesday Blitz"]
[Site "Chess.com"]
[Date "2019.01.01"]
[Round "5"]
[White "Shivagami"]
[Black "GremioPrudente"]
[Result "1/2-1/2"]
[WhiteElo "2130"]
[BlackElo "2015"]
[TimeControl "180+2"]
[EndTime "14:08:48 PST"]
[Termination "Game drawn by repetition"]

1. d4 {[%clk 0:03:01.9]} 1... d5 {[%clk 0:02:58.5]} 2. Bf4 {[%clk 0:03:02.1]}
2... e6 {[%clk 0:02:57.6]} 3. e3 {[%clk 0:03:02.6]} 3... Nf6 {[%clk 0:02:57.2]}
4. Nd2 {[%clk 0:03:01.3]} 4... Bd6 {[%clk 0:02:57.9]} 5. Bg3 {[%clk 0:03:01.3]}
5... c5 {[%clk 0:02:58.2]} 6. c3 {[%clk 0:03:00.8]} 6... O-O {[%clk 0:02:58.3]}
7. Bd3 {[%clk 0:02:55.4]} 7... Qc7 {[%clk 0:02:55.3]} 8. Ngf3 {[%clk 0:02:51.7]}
8... Nbd7 {[%clk 0:02:55.7]} 9. Bh4 {[%clk 0:02:38.9]} 9... e5 {[%clk
0:02:47.2]} 10. dxe5 {[%clk 0:02:27.6]} 10... Bxe5 {[%clk 0:02:47.2]} 11. Nxe5
{[%clk 0:02:19.5]} 11... Nxe5 {[%clk 0:02:47.8]} 12. Bc2 {[%clk 0:02:16.8]}
12... Qc6 {[%clk 0:02:22.9]} 13. O-O {[%clk 0:02:10.4]} 13... Ng6 {[%clk
0:02:23.6]} 14. Bg3 {[%clk 0:02:08.4]} 14... Bg4 {[%clk 0:02:18]} 15. f3 {[%clk
0:02:06.4]} 15... Be6 {[%clk 0:02:17.1]} 16. h4 {[%clk 0:02:04.6]} 16... Ne7
{[%clk 0:02:12]} 17. e4 {[%clk 0:02:04.8]} 17... Rad8 {[%clk 0:02:01.4]} 18. e5
{[%clk 0:02:00.9]} 18... Nd7 {[%clk 0:01:50.4]} 19. f4 {[%clk 0:01:57.6]} 19...
Bf5 {[%clk 0:01:43.1]} 20. Bh2 {[%clk 0:01:48]} 20... Qg6 {[%clk 0:01:39.2]} 21.
Bxf5 {[%clk 0:01:41.2]} 21... Nxf5 {[%clk 0:01:40.1]} 22. Qe1 {[%clk 0:01:39.5]}
22... Qg4 {[%clk 0:01:24.7]} 23. Nf3 {[%clk 0:01:32.5]} 23... Rfe8 {[%clk
0:01:18.9]} 24. Rd1 {[%clk 0:01:24.9]} 24... Nf6 {[%clk 0:01:16.8]} 25. Qf2
{[%clk 0:01:15.6]} 25... Ne4 {[%clk 0:01:16.8]} 26. Qe1 {[%clk 0:01:14.6]} 26...
Nfg3 {[%clk 0:01:08.5]} 27. Bxg3 {[%clk 0:01:09.3]} 27... Nxg3 {[%clk
0:01:09.1]} 28. Rf2 {[%clk 0:01:09.1]} 28... Ne4 {[%clk 0:00:52.4]} 29. Rf1
{[%clk 0:01:06.8]} 29... Ng3 {[%clk 0:00:50.2]} 30. Rf2 {[%clk 0:00:48.5]} 30...
Ne4 {[%clk 0:00:51]} 31. Rf1 {[%clk 0:00:49.5]} 31... Ng3 {[%clk 0:00:51.6]}
1/2-1/2